fUST/lending_fUST_20251020
["ID","MTS","AMOUNT","RATE_DAILY","PERIOD"]
[391870775,1760937040502,-500.0,0.00032581,30]
[391870776,1760937040511,-500.0,0.00032636,30]
[391870777,1760937040521,-500.0,0.0003269,30]
[391870778,1760937040530,-500.0,0.00032745,30]
[391870779,1760937040539,-500.0,0.000328,30]
[391870780,1760937040549,-168.0,0.00032815,2]
[391870781,1760937040559,-168.0,0.00032848,2]
[391870782,1760937040569,-500.0,0.00032855,30]
[391870783,1760937040578,-500.0,0.0003286,5]
[391870784,1760937040587,-500.0,0.0003286,5]
[391870785,1760937040597,-501.0359694,0.0003286,5]
[391870786,1760937040606,-500.0,0.0003286,5]
[391870787,1760937040616,-165.55160532,0.0003286,5]
[391870788,1760937040625,-500.0,0.0003286,5]
[391870789,1760937040634,-500.85750236,0.0003286,5]
[391870790,1760937040644,-501.58006897,0.0003286,5]
[391870791,1760937040653,-500.42760067,0.0003286,5]
[391870792,1760937040662,-500.0,0.0003286,5]
[391870793,1760937040671,-501.0076811,0.0003286,5]
[391870794,1760937040680,-629.44775938,0.0003286,5]
[391870795,1760937040690,-500.0,0.0003286,5]
[391870796,1760937040699,-501.13589229,0.0003286,5]
[391870797,1760937040708,-500.0,0.0003286,5]
[391870798,1760937040717,-501.12426857,0.0003286,5]
[391870799,1760937040726,-500.0,0.0003286,5]
[391870800,1760937040736,-574.70726404,0.0003286,5]
[391870801,1760937040746,-501.16024205,0.0003286,5]
[391870802,1760937040755,-501.48894406,0.0003286,5]
[391870803,1760937040764,-500.0,0.0003286,5]
[391870804,1760937040774,-500.0,0.0003286,2]
[391870805,1760937040783,-501.58932102,0.0003286,5]
[391870806,1760937040793,-522.05539574,0.0003286,5]
[391870807,1760937040803,-500.0,0.0003286,5]
[391870808,1760937040812,-500.0,0.0003286,5]
[391870809,1760937040822,-500.0,0.0003286,5]
[391870810,1760937040831,-183.46701701,0.0003286,5]
[391870811,1760937040840,-522.95357546,0.0003286,5]
[391870812,1760937040850,-4073.66,0.00032876,120]
[391870813,1760937040860,-264.94433982,0.00032876,120]
[391870814,1760937040870,-208.15288669,0.000329,120]
[391870815,1760937040880,-582.62861941,0.000329,120]
[391870816,1760937040889,-429.98466587,0.000329,120]
[391870817,1760937040899,-500.0,0.0003291,30]
[391870818,1760937040908,-224.0,0.00032964,30]
[391870819,1760937040917,-1295.83410159,0.00033,30]
[391870820,1760937040927,-1448.02,0.00033,14]
[391870821,1760937040936,-156.0,0.00033,14]
[391870822,1760937040946,-168.0,0.00033092,2]
[391870823,1760937040956,-653.17,0.000331,2]
[391870824,1760937040965,-825.946188,0.00033165,2]
[391870825,1760937040975,-502.14059009,0.00033408,5]
[391870826,1760937040984,-502.79860014,0.00033408,5]
[391870827,1760937040993,-205.94857348,0.00033808,2]
[391870828,1760937041003,-582.62861941,0.000339,120]
[391870829,1760937041012,-429.98466587,0.000339,120]
[391870830,1760937041022,-4073.66,0.00033972,120]
[391870831,1760937041032,-162638.91598084,0.00034,60]
[391870832,1760937041042,-500.0,0.0003409,60]
[391870833,1760937041052,-59828.89609142,0.00034115,30]
[391870834,1760937041069,-4047.53109994,0.00034115,30]
[391870835,1760937041481,-3e-08,0.00034115,30]
[391870859,1760937044175,-411.0,0.00031322,2]
[391870860,1760937044186,-6090.48382218,0.00034115,30]
[391870861,1760937046857,-500.0,0.00025615,2]
[391870862,1760937046868,-500.0,0.00025615,2]
[391870863,1760937046880,-500.0,0.00025615,2]
[391870864,1760937046891,-500.0,0.00025615,2]
[391870865,1760937046901,-500.0,0.00025615,2]
[391870866,1760937046914,-500.0,0.00025615,2]
[391870867,1760937046926,-500.0,0.00025615,2]
[391870868,1760937046939,-500.0,0.00025615,2]
[391870869,1760937046949,-500.0,0.00025615,2]
[391870870,1760937046960,-227.48373134,0.00029755,2]
[391870871,1760937046971,-2726.43214667,0.00034115,30]
[391870872,1760937312335,177.47,0.0002183,2]
[391870873,1760937312928,354.94,0.00023815,2]
[391870874,1760937388603,170.7,0.00021967,2]
[391870875,1760937389032,341.39,0.00023964,2]
[391870876,1760937470368,164.18,0.00021931,2]
[391870877,1760937471030,328.36,0.00023924,2]
[391870892,1760937508462,417.15472785,0.00024141,2]
[391870893,1760937550963,165.43,0.00021694,2]
[391870894,1760937551383,330.86,0.00023666,2]
[391870895,1760937565197,-5000.0,0.00024953,2]
[391870896,1760937631320,159.11,0.00021718,2]
[391870897,1760937631719,318.23,0.00023693,2]
[391870898,1760937713369,153.04,0.00021734,2]
[391870899,1760937713788,306.08,0.0002371,2]
[391870900,1760937749994,9063.55,0.00024141,2]
[391870901,1760937750015,936.45,0.00024141,2]
[391870902,1760937762875,5038.0,0.00024141,2]
[391870903,1760937793756,150.0,0.00022,2]
[391870904,1760937794189,294.39,0.00024,2]
[391870905,1760937864084,-220.52139478,0.00024703,2]
[391870906,1760937867493,1539.0,0.00024703,2]
[391870907,1760937868893,-172.5,0.00024703,2]
[391870908,1760937871493,-175.68324046,0.00024703,2]
[391870909,1760937873600,-179.28,0.00024703,2]
[391870910,1760937874809,150.0,0.00021822,2]
[391870911,1760937875226,283.08,0.00023806,2]
[391870912,1760937876781,-155.36852801,0.00024703,2]
[391870913,1760937881974,393.00454263,0.00024703,2]
[391870914,1760937882376,-381.76500555,0.00024703,2]
[391870915,1760937897159,3714.8818312,0.00024703,2]
[391870922,1760937976748,5000.0,0.00024953,2]
[391870923,1760937984694,1935.06407538,0.00024953,2]
[391870924,1760938008116,3064.93592462,0.0002475,2]
[391870925,1760938023194,3054.28443357,0.0002475,2]
[391870937,1760938095498,-5000.0,0.0002475,2]
[391870938,1760938101377,-300.0,0.00024773,2]
[391870939,1760938101406,-2784.6910845,0.00024774,2]
[391870940,1760938104441,-3830.627831,0.00024774,2]
[391870945,1760938122920,10000.01,0.0002465,2]
[391870946,1760938123981,2343.27692446,0.0001,2]
[391870947,1760938124778,9581.26,0.00024142,2]
[391870948,1760938124942,261.08836441,0.00015,2]
[391870949,1760938125665,-45.73960496,0.00024142,2]
[391870950,1760938128944,-5755.31620397,0.0002465,2]
[391870951,1760938131697,-10000.01,0.0002465,2]
[391870952,1760938131804,-10000.01,0.0002465,2]
[391870953,1760938149655,-167.36751622,0.00024403,2]
[391870954,1760938151423,-168.18118693,0.00024403,2]
[391870955,1760938152909,-300.0,0.00024403,2]
[391870956,1760938155764,-258.89412908,0.00024403,2]
[391870957,1760938158376,-226.94957607,0.00024403,2]
[391870958,1760938162076,-339.12465709,0.00024403,2]
[391870959,1760938179043,-211.10913219,0.00024403,2]
[391870960,1760938180684,-213.92250557,0.00024403,2]
[391870961,1760938183196,-166.31046607,0.00024403,2]
[391870962,1760938184732,-213.91157078,0.00024403,2]
[391870963,1760938187409,-162.70356344,0.00024403,2]
[391870964,1760938191544,-299.99999997,0.00024403,2]
[391870965,1760938193102,-247.63971464,0.00024403,2]
[391870966,1760938209029,-153.0,0.00024403,2]
[391870967,1760938211884,-217.54586185,0.00024403,2]
[391870968,1760938213604,-1653.3401201,0.00024403,2]
[391870969,1760938213636,-200.0,0.00024403,2]
[391870970,1760938213670,-300.0,0.000246,2]
[391870971,1760938213700,-300.0,0.000246,2]
[391870972,1760938213729,-300.0,0.000246,2]
[391870973,1760938213764,-300.0,0.000246,2]
[391870974,1760938213795,-300.0,0.00024649,2]
[391870975,1760938213826,-1200.0,0.00024649,2]
[391870976,1760938213978,-893.3297598,0.0002465,2]
[391870977,1760938219543,-500.0,0.000245,2]
[391870978,1760938219571,-3443.02492958,0.0002465,2]
[391870979,1760938219606,-2113.96014084,0.0002465,2]
[391871020,1760938231777,-150.0,0.0002465,2]
[391871022,1760938231787,-5000.0,0.0002475,2]
[391871024,1760938231796,-653.86969548,0.00025205,2]
[391871026,1760938231806,-172.5,0.0002525,2]
[391871028,1760938231815,-399.68297719,0.00025396,2]
[391871030,1760938231824,-170.48473676,0.00025415,2]
[391871032,1760938231833,-69294.6589378,0.00025496,2]
[391871034,1760938231844,-1068.29511316,0.00025496,2]
[391871036,1760938231853,-189.82,0.00025496,3]
[391871038,1760938231862,-569.5,0.00025496,3]
[391871041,1760938231871,-262.48343727,0.00025505,2]
[391871044,1760938231880,-606.18523956,0.00025505,2]
[391871047,1760938231889,-500.0,0.00025505,2]
[391871050,1760938231898,-500.0,0.00025505,2]
[391871053,1760938231907,-530.68592944,0.00025505,2]
[391871056,1760938231916,-552.99611935,0.00025505,2]
[391871058,1760938231925,-50504.73736569,0.00025506,2]
[391871060,1760938231936,-10098.78766114,0.00025506,2]
[391871063,1760938237595,-300.0,0.000244,2]
[391871064,1760938237604,-1461.11117675,0.00024403,2]
[391871065,1760938237613,-535.12332161,0.00025495,2]
[391871066,1760938237622,-239.73481389,0.00025495,2]
[391871067,1760938237631,-223.14729134,0.00025495,2]
[391871068,1760938237639,-500.0,0.00025495,2]
[391871069,1760938237648,-500.0,0.00025495,2]
[391871070,1760938237657,-500.0,0.00025495,2]
[391871071,1760938237666,-500.0,0.00025495,2]
[391871072,1760938237675,-124182.23214017,0.00025506,2]
[391871074,1760938237685,-500.0,0.00025516,5]
[391871075,1760938237697,-13040.58672453,0.00025516,2]
[391871076,1760938237719,-500.0,0.00025495,2]
[391871077,1760938237729,-500.0,0.00025495,2]
[391871078,1760938237738,-356959.41327547,0.00025516,2]
[391871079,1760938237748,-629.44775938,0.00025573,2]
[391871080,1760938237760,-501.70273976,0.00025573,2]
[391871081,1760938237771,-165.55160532,0.00025573,2]
[391871082,1760938237781,-500.0,0.00025573,2]
[391871083,1760938237916,-500.85750236,0.00025573,2]
[391871084,1760938237928,-500.42760067,0.00025573,2]
[391871085,1760938237939,-500.0,0.00025573,2]
[391871086,1760938237951,-500.0,0.00025573,2]
[391871087,1760938237961,-500.0,0.00025573,2]
[391871088,1760938237970,-501.0359694,0.00025573,2]
[391871089,1760938237980,-501.58006897,0.00025573,2]
[391871090,1760938237990,-500.0,0.00025573,2]
[391871091,1760938237999,-500.0,0.00025573,2]
[391871092,1760938238009,-300.0,0.00025573,2]
[391871093,1760938238019,-501.48894406,0.00025573,2]
[391871094,1760938238029,-500.0,0.00025573,2]
[391871095,1760938238038,-561.5019322,0.00025573,2]
[391871096,1760938238047,-500.0,0.00025573,2]
[391871097,1760938238056,-183.46701701,0.00025573,2]
[391871098,1760938238066,-500.76973242,0.00025573,2]
[391871099,1760938238075,-500.0,0.00025573,2]
[391871100,1760938238084,-501.82495796,0.00025573,2]
[391871101,1760938238093,-503.45158491,0.00025573,2]
[391871102,1760938238102,-501.17060227,0.00025573,2]
[391871103,1760938238111,-500.0,0.00025573,2]
[391871104,1760938238120,-522.95357546,0.00025573,2]
[391871105,1760938238130,-500.0,0.00025573,2]
[391871106,1760938238139,-430.37992842,0.00025596,2]
[391871107,1760938238148,-19957.69,0.000256,7]
[391871108,1760938238158,-500.0,0.0002579,5]
[391871109,1760938238166,-195.0,0.0002585,2]
[391871110,1760938238175,-1758.61786722,0.0002599,2]
[391871111,1760938238185,-1666.398039,0.00026,30]
[391871112,1760938238196,-500.0,0.00026064,5]
[391871113,1760938238205,-502.14059009,0.00026121,2]
[391871114,1760938238214,-543.5,0.00026338,5]
[391871115,1760938238223,-217.5,0.0002645,2]
[391871116,1760938238233,-152.804718,0.00026563,2]
[391871117,1760938238242,-160.0,0.000267,2]
[391871118,1760938238251,-420.0,0.00026713,2]
[391871119,1760938238260,-379.64,0.00026866,3]
[391871120,1760938238269,-4270.13525697,0.00027,3]
[391871121,1760938238279,-152.804718,0.00027044,2]
[391871122,1760938238288,-155.273958,0.00027044,2]
[391871123,1760938238300,-240.0,0.0002705,2]
[391871124,1760938238310,-201.34,0.00027165,2]
[391871125,1760938238319,-202.63163458,0.00027248,2]
[391871126,1760938238328,-399.68297714,0.00027468,2]
[391871127,1760938238338,-152.804718,0.00027526,2]
[391871128,1760938238347,-155.273958,0.00027526,2]
[391871129,1760938238357,-262.5,0.0002765,2]
[391871130,1760938238366,-996.7,0.000277,2]
[391871131,1760938238375,-3356.88,0.000277,2]
[391871132,1760938238386,-161.165,0.00027935,18]
[391871133,1760938238395,-285.0,0.0002825,2]
[391871134,1760938238405,-307.5,0.0002885,2]
[391871135,1760938238415,-486.0,0.00028949,2]
[391871136,1760938238424,-330.0,0.0002945,2]
[391871137,1760938238434,-252.06163905,0.000295,120]
[391871138,1760938238445,-399.68297714,0.0002954,2]
[391871139,1760938238454,-71589.98523032,0.0002956,2]
[391871140,1760938238464,-402.68,0.00029634,2]
[391871141,1760938238474,-160.0,0.00029665,2]
[391871142,1760938238484,-160.0,0.00029665,2]
[391871143,1760938238493,-402.9601108,0.00029666,2]
[391871144,1760938238503,-4270.07,0.000297,5]
[391871145,1760938238513,-77258.01630951,0.000297,2]
[391871146,1760938238523,-318.37761606,0.00029973,5]
[391871147,1760938238532,-503.90820243,0.00029973,5]
[391871148,1760938238541,-510.21036092,0.00029973,5]
[391871149,1760938238551,-500.0,0.00029973,5]
[391871150,1760938238560,-300.0,0.0003,120]
[391871151,1760938238569,-1005.25789987,0.0003,14]
[391871152,1760938238578,-431368.43876542,0.0003,15]
[391871153,1760938238587,-151.0,0.0003,30]
[391871154,1760938238597,-232.725867,0.0003,2]
[391871155,1760938238606,-151.0,0.0003,30]
[391871156,1760938238615,-352.5,0.0003005,2]
[391871157,1760938238625,-950.0753,0.00030137,120]
[391871158,1760938238634,-666.0,0.00030324,2]
[391871159,1760938238644,-1000.0,0.00030521,5]
[391871160,1760938238653,-215.94006223,0.0003065,2]
[391871161,1760938238662,-776.32012445,0.00031,120]
[391871162,1760938238672,-316.98418453,0.00031,120]
[391871163,1760938238681,-568.87749827,0.00031,120]
[391871164,1760938238691,-183.30272066,0.00031,120]
[391871165,1760938238703,-204.00726077,0.00031,120]
[391871166,1760938238713,-1500.0,0.00031068,5]
[391871167,1760938238723,-982.48872259,0.0003127,2]
[391871168,1760938238732,-411.0,0.00031505,2]
[391871169,1760938238741,-168.0,0.00031556,2]
[391871170,1760938238751,-399.68297714,0.00031612,2]
[391871171,1760938238762,-2000.0,0.00031616,5]
[391871172,1760938238774,-335.25560271,0.00031629,2]
[391871173,1760938238784,-168.0,0.00031681,2]
[391871174,1760938238794,-168.0,0.00031874,2]
[391871175,1760938238805,-776.32012445,0.000319,120]
[391871176,1760938238816,-316.98418453,0.000319,120]
[391871177,1760938238825,-568.87749827,0.000319,120]
[391871178,1760938238835,-152.89452512,0.00031978,30]
[391871179,1760938238844,-210.63753227,0.00031978,30]
[391871180,1760938238855,-153.71087954,0.00031978,30]
[391871181,1760938238865,-151.0,0.00031978,30]
[391871182,1760938238874,-438.0,0.00031978,30]
[391871183,1760938238884,-500.0,0.00031978,30]
[391871184,1760938238894,-168.0,0.00031992,2]
[391871185,1760938238904,-1787.93810506,0.00032,30]
[391871186,1760938238914,-168.0,0.0003201,2]
[391871187,1760938238924,-208.71064386,0.00032033,30]
[391871188,1760938238934,-438.0,0.00032033,30]
[391871189,1760938238946,-500.0,0.00032033,30]
[391871190,1760938238955,-438.0,0.00032088,30]
[391871191,1760938238965,-599.0,0.00032088,30]
[391871192,1760938238977,-604.03,0.00032104,2]
[391871193,1760938238987,-438.0,0.00032142,30]
[391871194,1760938238996,-2592.86926679,0.00032164,5]
[391871195,1760938239006,-438.0,0.00032197,30]
[391871196,1760938239016,-250.0,0.00032244,2]
[391871197,1760938239026,-438.0,0.00032252,30]
[391871198,1760938239036,-151.0,0.000323,20]
[391871199,1760938239046,-438.0,0.00032307,30]
[391871200,1760938239056,-438.0,0.00032362,30]
[391871201,1760938239066,-168.0,0.00032382,2]
[391871202,1760938239076,-438.0,0.00032416,30]
[391871203,1760938239086,-200.0,0.00032437,120]
[391871204,1760938239095,-168.0,0.00032453,2]
[391871205,1760938239105,-438.0,0.00032471,30]
[391871206,1760938239115,-438.0,0.00032526,30]
[391871207,1760938239124,-438.0,0.00032581,30]
[391871208,1760938239134,-438.0,0.00032636,30]
[391871209,1760938239143,-438.0,0.0003269,30]
[391871210,1760938239153,-438.0,0.00032745,30]
[391871211,1760938239162,-200.0,0.0003276,120]
[391871212,1760938239171,-168.0,0.00032771,2]
[391871213,1760938239180,-438.0,0.000328,30]
[391871215,1760938239190,-438.0,0.00032855,30]
[391871216,1760938239202,-4073.66,0.00032876,120]
[391871217,1760938239211,-264.94433982,0.00032876,120]
[391871219,1760938239220,-500.0,0.00032877,5]
[391871221,1760938239230,-776.32012445,0.000329,120]
[391871223,1760938239239,-316.98418453,0.000329,120]
[391871224,1760938239248,-568.87749827,0.000329,120]
[391871225,1760938239257,-402.77170604,0.000329,120]
[391871226,1760938239267,-160.0,0.000329,120]
[391871227,1760938239276,-438.0,0.0003291,30]
[391871228,1760938239286,-438.0,0.00032964,30]
[391871229,1760938239295,-1000.0,0.00033,7]
[391871230,1760938239304,-16926.83101974,0.00033,5]
[391871231,1760938239313,-1295.83410159,0.00033,30]
[391871232,1760938239323,-155.0,0.00033,14]
[391871233,1760938239332,-438.0,0.00033019,30]
[391871234,1760938239341,-438.0,0.00033074,30]
[391871235,1760938239350,-438.0,0.00033129,30]
[391871236,1760938239359,-1076.49162484,0.00033151,5]
[391871238,1760938239368,-438.0,0.00033183,30]
[391871240,1760938239378,-19957.69,0.000332,14]
[391871242,1760938239387,-151.0,0.000332,18]
[391871244,1760938239397,-151.0,0.000332,30]
[391871246,1760938239406,-151.0,0.000332,30]
[391871248,1760938239416,-151.0,0.000332,30]
[391871250,1760938239426,-151.0,0.000332,30]
[391871251,1760938239436,-162.196016,0.000332,30]
[391871252,1760938239446,-151.0,0.000332,30]
[391871253,1760938239456,-151.0,0.000332,30]
[391871254,1760938239465,-151.0,0.000332,30]
[391871255,1760938239474,-165.04669864,0.000332,117]
[391871256,1760938239484,-151.0,0.000332,30]
[391871257,1760938239493,-165.04669862,0.000332,117]
[391871258,1760938239502,-151.0,0.000332,30]
[391871259,1760938239512,-151.0,0.000332,30]
[391871260,1760938239521,-151.0,0.000332,30]
[391871261,1760938239531,-219.371424,0.000332,15]
[391871262,1760938239540,-151.0,0.000332,30]
[391871263,1760938239550,-2609.52677127,0.000332,4]
[391871264,1760938239559,-438.0,0.00033238,30]
[391871265,1760938239568,-168.0,0.00033282,2]
[391871266,1760938239577,-168.0,0.0003333,2]
[391871267,1760938239587,-168.0,0.00033413,2]
[391871268,1760938239596,-3356.88,0.000335,14]
[391871269,1760938239605,-151.0,0.000335,30]
[391871270,1760938239614,-1376.06167621,0.00033529,2]
[391871271,1760938239624,-168.0,0.0003358,2]
[391871272,1760938239634,-196.9777126,0.00033611,2]
[391871273,1760938239643,-168.0,0.00033625,2]
[391871274,1760938239653,-184.6795917,0.00033645,2]
[391871275,1760938239662,-399.68297714,0.00033684,2]
[391871276,1760938239671,-151.0,0.00033798,30]
[391871277,1760938239680,-151.0,0.00033798,30]
[391871278,1760938239690,-151.0,0.00033798,30]
[391871279,1760938239700,-151.0,0.00033798,30]
[391871280,1760938239709,-151.0,0.00033798,30]
[391871281,1760938239718,-151.0,0.00033798,7]
[391871282,1760938239728,-157.9655,0.00033798,30]
[391871283,1760938239737,-151.0,0.00033798,30]
[391871284,1760938239748,-151.0,0.00033798,30]
[391871285,1760938239758,-151.0,0.00033798,30]
[391871286,1760938239767,-151.0,0.00033798,30]
[391871287,1760938239780,-151.000001,0.00033798,30]
[391871288,1760938239789,-151.0,0.00033798,30]
[391871289,1760938239798,-151.0,0.00033798,30]
[391871290,1760938239808,-301.99999993,0.00033798,30]
[391871291,1760938239817,-1013.230428,0.000338,13]
[391871292,1760938239827,-9757.1632236,0.00033808,2]
[391871293,1760938239836,-168.0,0.00033853,2]
[391871294,1760938239847,-205.94857348,0.00033892,2]
[391871295,1760938239856,-776.32012445,0.000339,120]
[391871296,1760938239865,-316.98418453,0.000339,120]
[391871297,1760938239875,-568.87749827,0.000339,120]
[391871298,1760938239884,-158.51522305,0.000339,2]
[391871299,1760938239899,-838.18477695,0.000339,2]
[391871300,1760938239908,-3964.86042305,0.00033972,120]
[391871301,1760938239919,-108.79957695,0.00033972,120]
[391871302,1760938239928,-200.0,0.00033982,120]
[391871303,1760938239937,-10111.56785775,0.00034,60]
[391871311,1760938242000,-3e-08,0.00025495,2]
[391871322,1760938242845,-350.0,0.00025495,2]
[391871323,1760938242857,-149.99999997,0.00025495,2]
[391871324,1760938242868,-415.9916317,0.00025495,2]
[391871325,1760938242901,-84.0083683,0.00025495,2]
[391871326,1760938242911,-500.0,0.00025495,2]
[391871327,1760938242920,-193.92350561,0.00025495,2]
[391871328,1760938242929,-500.0,0.00025495,2]
[391871329,1760938242938,-500.0,0.00025495,2]
[391871330,1760938242949,-500.0,0.00025495,2]
[391871331,1760938242958,-429.01753193,0.00025495,2]
[391871332,1760938242967,-500.0,0.00025495,2]
[391871333,1760938242976,-500.0,0.00025495,2]
[391871334,1760938242985,-500.0,0.00025495,2]
[391871335,1760938242994,-500.0,0.00025495,2]
[391871336,1760938243003,-500.0,0.00025495,2]
[391871337,1760938243012,-500.0,0.00025495,2]
[391871338,1760938243022,-500.0,0.00025495,2]
[391871339,1760938243031,-500.0,0.00025495,2]
[391871340,1760938243040,-152527.34812309,0.00034,60]
[391871341,1760938243050,-151.0,0.00034,30]
[391871342,1760938243059,-151.0,0.00034,30]
[391871343,1760938243067,-151.0,0.00034,30]
[391871344,1760938243076,-151.0,0.00034,30]
[391871345,1760938243085,-151.0,0.00034,7]
[391871346,1760938243094,-151.0,0.00034,30]
[391871347,1760938243103,-151.0,0.00034,30]
[391871348,1760938243112,-151.0,0.00034,30]
[391871349,1760938243121,-151.0,0.00034,30]
[391871350,1760938243139,-291.925384,0.00034,30]
[391871351,1760938243150,-151.0,0.00034,30]
[391871352,1760938243160,-4579.33515273,0.00034,30]
[391871353,1760938243169,-151.0,0.00034,30]
[391871354,1760938243178,-8393.23830775,0.00034011,2]
[391871355,1760938243187,-500.0,0.00034043,60]
[391871356,1760938243199,-402.9601108,0.00034106,30]
[391871357,1760938243208,-151.0,0.00034111,30]
[391871358,1760938243217,-151.909778,0.00034111,30]
[391871359,1760938243227,-151.0,0.00034111,30]
[391871360,1760938243236,-151.0,0.00034111,30]
[391871361,1760938243245,-151.0,0.00034111,30]
[391871362,1760938243254,-151.0,0.00034111,30]
[391871363,1760938243263,-151.0,0.00034111,30]
[391871364,1760938243273,-151.0,0.00034111,30]
[391871365,1760938243282,-276.257916,0.00034111,30]
[391871366,1760938243291,-236.264492,0.00034111,30]
[391871367,1760938243300,-151.0,0.00034111,30]
[391871368,1760938243310,-151.0,0.00034111,30]
[391871369,1760938243320,-151.0,0.00034111,30]
[391871370,1760938243329,-155.877407,0.00034111,30]
[391871371,1760938243338,-151.0,0.00034111,30]
[391871372,1760938243347,-246.388793,0.00034111,30]
[391871373,1760938243357,-151.0,0.00034111,30]
[391871374,1760938243366,-151.0,0.00034111,30]
[391871375,1760938243376,-285.67604,0.00034111,30]
[391871376,1760938243385,-133695.65683976,0.00034111,30]
[391871377,1760938243395,-100000.0,0.00034111,30]
[391871378,1760938243405,-100000.0,0.00034111,30]
[391871379,1760938243414,-100000.0,0.00034111,30]
[391871380,1760938243423,-100000.0,0.00034111,30]
[391871381,1760938243432,-100000.0,0.00034111,30]
[391871382,1760938243442,-90000.0,0.00034111,43]
[391871383,1760938243455,-150.0,0.00034111,2]
[391871384,1760938243465,-150.0,0.00034111,2]
[391871385,1760938243474,-17300.0,0.00034111,30]
[391871386,1760938243484,-151.0,0.00034111,30]
[391871387,1760938243493,-156.587,0.00034111,30]
[391871388,1760938243503,-156.587,0.00034111,30]
[391871389,1760938243512,-250.0,0.00034111,30]
[391871390,1760938243522,-250.0,0.00034111,30]
[391871391,1760938243531,-250.0,0.00034111,30]
[391871392,1760938243672,-250.0,0.00034111,30]
[391871393,1760938243700,-250.0,0.00034111,30]
[391871394,1760938243710,-500.0,0.00034111,30]
[391871395,1760938243719,-500.0,0.00034111,30]
[391871396,1760938243728,-500.0,0.00034111,30]
[391871397,1760938243737,-500.0,0.00034111,30]
[391871398,1760938243747,-500.0,0.00034111,30]
[391871399,1760938243756,-500.0,0.00034111,30]
[391871400,1760938243766,-414.0,0.00034111,30]
[391871401,1760938243780,-250.0,0.00034111,30]
[391871402,1760938243789,-429.318,0.00034111,30]
[391871403,1760938243798,-250.0,0.00034111,30]
[391871404,1760938243809,-445.202766,0.00034111,30]
[391871405,1760938243818,-461.67526834,0.00034111,30]
[391871406,1760938243827,-478.75725327,0.00034111,30]
[391871407,1760938243836,-496.47127164,0.00034111,30]
[391871408,1760938243845,-514.84070869,0.00034111,30]
[391871409,1760938243855,-533.88981491,0.00034111,30]
[391871410,1760938243864,-533.88981491,0.00034111,30]
[391871411,1760938243874,-250.0,0.00034111,30]
[391871412,1760938243883,-250.0,0.00034111,30]
[391871413,1760938243892,-250.0,0.00034111,30]
[391871414,1760938243901,-250.0,0.00034111,30]
[391871415,1760938243910,-250.0,0.00034111,30]
[391871416,1760938243919,-250.0,0.00034111,30]
[391871417,1760938243928,-250.0,0.00034111,30]
[391871418,1760938243937,-250.0,0.00034111,30]
[391871419,1760938243948,-250.0,0.00034111,30]
[391871420,1760938243957,-250.0,0.00034111,30]
[391871421,1760938243966,-250.0,0.00034111,30]
[391871422,1760938243975,-250.0,0.00034111,30]
[391871423,1760938243984,-250.0,0.00034111,30]
[391871424,1760938243993,-250.0,0.00034111,30]
[391871425,1760938244002,-250.0,0.00034111,30]
[391871426,1760938244012,-250.0,0.00034111,30]